Workbook

Sheet Enteral Feed Prescription
A1: Name: | D1: Date of Birth:
A2: Hospital Number: | D2: NHS Number:
A3: Gender:
A4: Date feeding commenced:
A6: Reviewed by dietitian?
A7: =IF(B6="Yes","",IF(B6="","","--- Review required?")) -> 
A8: Risk of refeeding synd?
G10: =IF(B6="yes","",IF(ISERROR(Workings!H10),"",Workings!H10)) -> 
G11: =IF(B6="yes","",IF(ISERROR(Workings!H12),"",Workings!H12)) -> 
B12: =IF(ISERROR(B10/((B11/100)*(B11/100)))," ",(B10/((B11/100)*(B11/100)))) ->  | C12: =IF(ISBLANK(C11),"",IF(ISBLANK(C10),"",IF(OR(C10="Certainty?",C11="Certainty?"),"",IF(C10="Estimated","Estimated",IF(C11="Estimated","Estimated","Actual"))))) -> 
A14: Feed type:
A18: =IF(B8="NO: No risk factors OR full feed established","",IF(B8="","","**REFEEDING RISK**")) ->  | B18: =IF(ISBLANK(B8),"",IF(A18="**REFEEDING RISK**","- First 12 hrs: Correct electrolytes then start feed @ 10 ml/hr. Prescribe pabrinex 1 pair OD for 3 days","")) -> 
B19: =IF(ISBLANK(B8),"",(IF(G25>25,(IF(A18="**REFEEDING RISK**","- Next 12 hrs: Re-check electrolytes. If no refeeding syndrome increase feed to 25 ml/hr","**COMMENCE FEED AT 25 ml/hr FOR 4 HOURS THEN INCREASE TO GOAL RATE**")),(IF(A18="**REFEEDING RISK**","- Next 12 hrs: Re-check electrolytes.If no refeeding syndrome then variable feeding rate (MAX 25ml/hr)","**LIMIT FEED RATE TO 25 ml/hr FOR FIRST 4 HOURS THEN FEED AT GOAL RATE **"))))) -> 
B20: =IF(ISBLANK(B8),"",IF(A18="**REFEEDING RISK**",IF(B19="- Next 12 hrs: Re-check electrolytes. If no refeeding syndrome increase feed to 25 ml/hr","- Thereafter: Recheck electrolytes. If no refeeding syndrome then variable rate feeding as below.","- Thereafter: Recheck electrolytes. If no refeeding syndrome then variable rate feeding as below"),"")) -> 
A23: =IF((TODAY()-$B$4)>Workings!$H$14,"Full feed",$B$4+Workings!$H$14) -> Full feed
A24: Propofol rate (ml/hr) | B24: Off | C24: 1-5 | D24: 6-10 | E24: 11-15 | F24: 16-20 | G24: 21-25
A25: Feed rate (ml/hr) | B25: =IF((ISERROR((IF((TODAY()-$B$4)>Workings!$H$14,(Workings!H60),(Workings!H17)))))," ",(IF((TODAY()-$B$4)>Workings!$H$14,(Workings!H60),(Workings!H17)))) ->  | C25: =IF((ISERROR(IF((TODAY()-$B$4)>Workings!$H$14,(Workings!I60),(Workings!I17))))," ",IF((TODAY()-$B$4)>Workings!$H$14,(Workings!I60),(Workings!I17))) ->  | D25: =IF((ISERROR(IF((TODAY()-$B$4)>Workings!$H$14,(Workings!J60),(Workings!J17))))," ",(IF((TODAY()-$B$4)>Workings!$H$14,(Workings!J60),(Workings!J17)))) ->  | E25: =IF((ISERROR(IF((TODAY()-$B$4)>Workings!$H$14,(Workings!K60),(Workings!K17))))," ",(IF((TODAY()-$B$4)>Workings!$H$14,(Workings!K60),(Workings!K17)))) ->  | F25: =IF((ISERROR(IF((TODAY()-$B$4)>Workings!$H$14,(Workings!L60),(Workings!L17))))," ",(IF((TODAY()-$B$4)>Workings!$H$14,(Workings!L60),(Workings!L17)))) ->  | G25: =IF((ISERROR(IF((TODAY()-$B$4)>Workings!$H$14,(Workings!M60),(Workings!M17))))," ",(IF(IF((TODAY()-$B$4)>Workings!$H$14,(Workings!M60),(Workings!M17))<5,"0",(IF((TODAY()-$B$4)>Workings!$H$14,(Workings!M60),(Workings!M17)))))) -> 
A26: =Workings!G26 -> Prosource TF sachet | B26: Give 1 sachet in morning & evening if on >10 ml/hr propofol (otherwise no Prosource)
B28: Total feed & propofol volume: | D28: =IF((ISERROR(IF((TODAY()-B4)>Workings!$H$14,(IF(MIN(Workings!H68:M68)=MAX(Workings!H67:M67),CONCATENATE(MAX(Workings!H67:M67)," ml"),MIN(Workings!H68:M68))),(IF(MIN(Workings!H41:'Workings'!M41)=MAX(Workings!H40:M40),CONCATENATE(MAX(Workings!H40:M40)," ml"),MIN(Workings!H41:M41))))))," ",(IF((TODAY()-B4)>Workings!$H$14,(IF(MIN(Workings!H68:M68)=MAX(Workings!H67:M67),CONCATENATE(MAX(Workings!H67:M67)," ml"),MIN(Workings!H68:M68))),(IF(MIN(Workings!H41:'Workings'!M41)=MAX(Workings!H40:M40),CONCATENATE(MAX(Workings!H40:M40)," ml"),MIN(Workings!H41:M41)))))) ->  | E28: =IF((ISERROR(IF((TODAY()-B4)>Workings!$H$14,(IF(MIN(Workings!H68:M68)=MAX(Workings!H67:M67),"",CONCATENATE("- ",MAX(Workings!H67:M67)," ml"))),(IF(MIN(Workings!H41:M41)=MAX(Workings!H40:M40),"",CONCATENATE("- ",MAX(Workings!H40:M40)," ml"))))))," ",(IF((TODAY()-B4)>Workings!$H$14,(IF(MIN(Workings!H68:M68)=MAX(Workings!H67:M67),"",CONCATENATE("- ",MAX(Workings!H67:M67)," ml"))),(IF(MIN(Workings!H41:M41)=MAX(Workings!H40:M40),"",CONCATENATE("- ",MAX(Workings!H40:M40)," ml")))))) -> 
A31: =IF((TODAY()-$B$4)>Workings!$H$14,"",B4+Workings!$H$14) -> 
A32: =IF((TODAY()-$B$4)>Workings!$H$14,"","Propofol rate (ml/hr)") ->  | B32: =IF((TODAY()-$B$4)>Workings!$H$14,"","Off") ->  | C32: =IF((TODAY()-$B$4)>Workings!$H$14,"","1-5") ->  | D32: =IF((TODAY()-$B$4)>Workings!$H$14,"","6-10") ->  | E32: =IF((TODAY()-$B$4)>Workings!$H$14,"","11-15") ->  | F32: =IF((TODAY()-$B$4)>Workings!$H$14,"","16-20") ->  | G32: =IF((TODAY()-$B$4)>Workings!$H$14,"","21-25") -> 
A33: =IF((TODAY()-$B$4)>Workings!$H$14,"","Feed rate (ml/hr)") ->  | B33: =IF((TODAY()-$B$4)>Workings!$H$14,"",(Workings!H60)) ->  | C33: =IF((TODAY()-$B$4)>Workings!$H$14,"",(Workings!I60)) ->  | D33: =IF((TODAY()-$B$4)>Workings!$H$14,"",(Workings!J60)) ->  | E33: =IF((TODAY()-$B$4)>Workings!$H$14,"",(Workings!K60)) ->  | F33: =IF((TODAY()-$B$4)>Workings!$H$14,"",(Workings!L60)) ->  | G33: =IF((TODAY()-$B$4)>Workings!$H$14,"",(Workings!M60)) -> 
A34: =IF((TODAY()-$B$4)>Workings!$H$14,"",A26) ->  | B34: =IF((TODAY()-$B$4)>Workings!$H$14,"","Give 1 sachet in morning & evening if on >10 ml/hr propofol (otherwise no Prosource)") -> 
B36: =IF((TODAY()-B4)>Workings!$H$14,"","Total feed & propofol volume:") ->  | D36: =IF((TODAY()-B4)>Workings!$H$14,"",(IF(MIN(Workings!H68:M68)=MAX(Workings!H67:M67),CONCATENATE(MAX(Workings!H67:M67)," ml"),MIN(Workings!H68:M68)))) ->  | E36: =IF((TODAY()-B4)>Workings!$H$14,"",(IF(MIN(Workings!H68:M68)=MAX(Workings!H67:M67),"",CONCATENATE("- ",MAX(Workings!H67:M67)," ml")))) -> 
A39: =IF(C12="Estimated","**THIS PRESCRIPTION USES AN ESTIMATED WEIGHT AND/OR HEIGHT, UPDATE WHEN ABLE**","") -> 
A43: Feed prescription update required (tick): YES ❑ Date: _____________
B44: =IF(B6="Yes","**ANY PRESCRIPTION CHANGE MUST BE AGREED WITH A DIETITIAN**","") -> 
A45: Reason (circle): | B45: Dietitian review
B46: =IF(C12="Estimated","Accurate weight/height obtained","") -> 
B47: Other (specify)

Sheet Workings (hidden)
A1: Certainty? | G1: Calorie requirement calculations | J1: Dosing weight | K1: CALORIE REQUIREMENT | L1: Protein requirement
A2: Actual | D2: Male | G2: IF ABW < IBW+20% | H2: Use actual weight | J2: =IF(ISBLANK('Enteral Feed Prescription'!B10), "",'Enteral Feed Prescription'!B10) ->  | K2: =IF(ISBLANK('Enteral Feed Prescription'!B10), "",(J2*H6)) ->  | L2: =IF(ISBLANK('Enteral Feed Prescription'!B10), "",(J2*H7)) -> 
A3: Estimated | D3: Female | H3: IBW: 0.9*height in cm-(100M or106F) | I3: =IF(OR(ISBLANK('Enteral Feed Prescription'!B3),ISBLANK('Enteral Feed Prescription'!B11)), "",0.9*('Enteral Feed Prescription'!B11-(IF('Enteral Feed Prescription'!B3="Male",100,106)))) -> 
G4: IF ABW > IBW+20% | H4: Use adjusted body weight | I4: IBW+0.4x(actual weight-IBW) | J4: =IF(OR(ISBLANK('Enteral Feed Prescription'!B10),ISBLANK('Enteral Feed Prescription'!B11)),"",(I3+0.4*(J2-I3))) ->  | K4: =IF(OR(ISBLANK('Enteral Feed Prescription'!B10),ISBLANK('Enteral Feed Prescription'!B11)), "",(J4*H6)) ->  | L4: =IF(OR(ISBLANK('Enteral Feed Prescription'!B10),ISBLANK('Enteral Feed Prescription'!B11)), "",(J4*H7)) -> 
A5: Yes | B5: No | C5: Calories/ml | D5: Protein/ml | G5: (alternative IBW calculation, from https://academic.oup.com/ajcn/article/103/5/1197/4569587) | H5: 2.2*BMI + 3.5*BMI*(Ht-1.5m) | I5: =IF(OR(ISBLANK('Enteral Feed Prescription'!B12),ISBLANK('Enteral Feed Prescription'!B11)),"",(2.2*'Enteral Feed Prescription'!B12)+((('Enteral Feed Prescription'!B11-150)/100)*'Enteral Feed Prescription'!B12*3.5)) -> 
A6: OSMOLITE HP | B6: OSMOLITE HP (first line) | C6: 1 | D6: 0.0626 | G6: Calorie requirement kcal/kg/day | H6: 25
A7: NEPRO | B7: NEPRO (Hyperkalaemia/fluid-restriction) | C7: 1.8 | D7: 0.081 | G7: Protein requirement g/kg/day | H7: 1.3
A8: OSMOLITE PLUS | B8: OSMOLITE PLUS (halal option) | C8: 1.206 | D8: 0.056 | G8: FEED IN USE | H8: Calories/ml | I8: Protein/ml
A9: JEVITY PLUS | C9: 1.223 | D9: 0.0556 | G9: ='Enteral Feed Prescription'!B14 -> 0 | H9: =IF(G9=A12,C12,(IF(G9=A6,C6,(IF(G9=A8,C8,(IF(G9=A9,C9,(IF(G9=A10,C10,(IF(G9=A11,C11,(IF(G9=A7,C7,(IF(G9=B6,C6,(IF(G9=B7,C7,(IF(G9=B8,C8,""))))))))))))))))))) ->  | I9: =IF(G9=A12,D12,(IF(G9=A6,D6,(IF(G9=A8,D8,(IF(G9=A9,D9,(IF(G9=A10,D10,(IF(G9=A11,D11,(IF(G9=A7,D7,(IF(G9=B6,D6,(IF(G9=B7,D7,(IF(G9=B8,D8,""))))))))))))))))))) -> 
A10: JEVITY 1.5 kcal | C10: 1.5 | D10: 0.0638 | G10: 100% cal goal [ABW IF <(IBW+20%), otherise AdjBW] | H10: =IF('Enteral Feed Prescription'!B6="Yes",'Enteral Feed Prescription'!F10,IF(J2<(I3*1.2),K2,K4)) -> 
A11: TWOCAL | C11: 2 | D11: 0.084 | G11: 70% calorie goal | H11: =H10*0.7 -> 
A12: VITAL 1.5 kcal | C12: 1.5 | D12: 0.0675 | G12: Protein goal | H12: =IF('Enteral Feed Prescription'!B6="Yes",'Enteral Feed Prescription'!F11,IF(J2<(I3*1.2),L2,L4)) -> 
G13: Hours to feed | H13: 24
A14: Propofol | C14: 1.1 | D14: 0 | G14: Days of hypocaloric (<70%) feeding | H14: 3
A15: Prosource TF | C15: 44 | D15: 11 | E15: NOT PER ML
H16: Propofol off | I16: 1-5 ml/hr | J16: 6-10 ml/hr | K16: 11-15 ml/hr | L16: 16-20 ml/hr | M16: 21-25 ml/hr
G17: Feed rate (70% goal) | H17: =MAX(0,ROUND(((($H$11-C19)/$H$13)/$H$9),0)) ->  | I17: =MAX(0,ROUND(((($H$11-C20)/$H$13)/$H$9),0)) ->  | J17: =MAX(0,ROUND((($H$11-C21)/$H$13/$H$9),0)) ->  | K17: =MAX(0,ROUND((($H$11-C22)/$H$13/$H$9),0)) ->  | L17: =MAX(0,ROUND((($H$11-C23)/$H$13/$H$9),0)) ->  | M17: =MAX(0,ROUND((($H$11-C24)/$H$13/$H$9),0)) -> 
A18: Propofol rate | C18: 24hr calorie reduction | D18: (lower propofol calories) | G18: Total calories (upper limit propofol) | H18: =(H17*$H$13*$H$9)+$C19 ->  | I18: =(I17*$H$13*$H$9)+$C20 ->  | J18: =(J17*$H$13*$H$9)+$C21 ->  | K18: =(K17*$H$13*$H$9)+$C22 ->  | L18: =(L17*$H$13*$H$9)+$C23 ->  | M18: =(M17*$H$13*$H$9)+$C24 -> 
A19: OFF | C19: 0 | D19: 0 | G19: Total calories (lower limit propofol) | H19: =(H17*$H$13*$H$9)+$D19 ->  | I19: =(I17*$H$13*$H$9)+$D20 ->  | J19: =(J17*$H$13*$H$9)+$D21 ->  | K19: =(K17*$H$13*$H$9)+$D22 ->  | L19: =(L17*$H$13*$H$9)+$D23 ->  | M19: =(M17*$H$13*$H$9)+$D24 -> 
A20: 1-5 ml/hr | C20: =5*1.1*24 -> 132 | D20: =1*1.1*24 -> 26.4 | G20: %required calories (upper limit propofol) | H20: =(H18/$H$10)*100 -> 
A21: 6-10 ml/hs | C21: =10*1.1*24 -> 264 | D21: =6*1.1*24 -> 158.4 | G21: %required calories (lower limit propofol)
A22: 11-15 ml/hr | C22: =15*1.1*24 -> 396 | D22: =11*1.1*24 -> 290.4 | G22: Protein | H22: =H17*$H$13*$I$9 -> 
A23: 16-20 ml/hr | C23: =20*1.1*24 -> 528 | D23: =16*1.1*24 -> 422.4 | G23: Protein as % of goal | H23: =(H22/$H$12)*100 -> 
A24: 21-25 ml/hr | C24: =25*1.1*24 -> 660 | D24: =21*1.1*24 -> 554.4 | G24: Protein deficit | H24: =MAX(0,$H$12-H22) -> 
G25: Prosource sachets (as agreed) | H25: 0 | I25: 0 | J25: 0 | K25: 2 | L25: 2 | M25: 2
G26: Prosource TF sachet | H26: =IF(Workings!H25=0,"Nil",IF(Workings!H25=1,"OD",IF(Workings!H25=2,"BD",IF(Workings!H25=3,"TDS",IF(Workings!H25=4,"QID"))))) -> Nil | I26: =IF(Workings!I25=0,"Nil",IF(Workings!I25=1,"OD",IF(Workings!I25=2,"BD",IF(Workings!I25=3,"TDS",IF(Workings!I25=4,"QID"))))) -> Nil | J26: =IF(Workings!J25=0,"Nil",IF(Workings!J25=1,"OD",IF(Workings!J25=2,"BD",IF(Workings!J25=3,"TDS",IF(Workings!J25=4,"QID"))))) -> Nil | K26: =IF(Workings!K25=0,"Nil",IF(Workings!K25=1,"OD",IF(Workings!K25=2,"BD",IF(Workings!K25=3,"TDS",IF(Workings!K25=4,"QID"))))) -> BD | L26: =IF(Workings!L25=0,"Nil",IF(Workings!L25=1,"OD",IF(Workings!L25=2,"BD",IF(Workings!L25=3,"TDS",IF(Workings!L25=4,"QID"))))) -> BD | M26: =IF(Workings!M25=0,"Nil",IF(Workings!M25=1,"OD",IF(Workings!M25=2,"BD",IF(Workings!M25=3,"TDS",IF(Workings!M25=4,"QID"))))) -> BD
A27: Refeeding risk? | G27: Total calories with prosource (upper) | H27: =H18+(H25*$C$15) -> 
G28: Total calories with prosource (lower) | H28: =H19+(H25*$C$15) -> 
A29: NO: No risk factors OR full feed established | G29: %goal calories (upper limit propofol with prosource) | H29: =(H27/$H$10)*100 -> 
A30: YES | G30: %goal calories (lower limit propofol with prosource) | H30: =(H28/$H$10)*100 -> 
G31: Total protein with prosource | H31: =H22+(11*H25) -> 
G32: Protein with prosource as % of goal | H32: =(H31/$H$12)*100 -> 
G33: Adjusted feed rate (avoid >70% calories) | H33: =IF(ISERROR(MAX(0,ROUNDDOWN(IF(H29<70,H17,(H17-(((H27-$H$11)/$H$9)/$H$13))),0))),"",(MAX(0,ROUNDDOWN(IF(H29<70,H17,(H17-(((H27-$H$11)/$H$9)/$H$13))),0)))) -> 
G34: Total calories with prosource (upper, adjusted rate) | H34: =IF(ISERROR((H33*$H$13*$H$9)+$C19+(H25*$C$15)),"",((H33*$H$13*$H$9)+$C19+(H25*$C$15))) ->  | I34: =IF(ISERROR((I33*$H$13*$H$9)+$C20+(I25*C15)),"",((I33*$H$13*$H$9)+$C20+(I25*C15))) ->  | J34: =IF(ISERROR((J33*$H$13*$H$9)+$C21+(J25*C15)),"",((J33*$H$13*$H$9)+$C21+(J25*C15))) ->  | K34: =IF(ISERROR((K33*$H$13*$H$9)+$C22+(K25*C15)),"",((K33*$H$13*$H$9)+$C22+(K25*C15))) ->  | L34: =IF(ISERROR((L33*$H$13*$H$9)+$C23+(L25*C15)),"",((L33*$H$13*$H$9)+$C23+(L25*C15))) ->  | M34: =IF(ISERROR((M33*$H$13*$H$9)+$C24+(M25*C15)),"",((M33*$H$13*$H$9)+$C24+(M25*C15))) -> 
G35: Total calories with prosource (lower, adjusted rate) | H35: =IF(ISERROR((H33*$H$13*$H$9)+$D19+(H25*C15)),"",((H33*$H$13*$H$9)+$D19+(H25*C15))) ->  | I35: =IF(ISERROR((I33*$H$13*$H$9)+$D20+(I25*C15)),"",((I33*$H$13*$H$9)+$D20+(I25*C15))) ->  | J35: =IF(ISERROR((J33*$H$13*$H$9)+$D21+(J25*C15)),"",((J33*$H$13*$H$9)+$D21+(J25*C15))) ->  | K35: =IF(ISERROR((K33*$H$13*$H$9)+$D22+(K25*C15)),"",((K33*$H$13*$H$9)+$D22+(K25*C15))) ->  | L35: =IF(ISERROR((L33*$H$13*$H$9)+$D23+(L25*C15)),"",((L33*$H$13*$H$9)+$D23+(L25*C15))) ->  | M35: =IF(ISERROR((M33*$H$13*$H$9)+$D24+(M25*C15)),"",((M33*$H$13*$H$9)+$D24+(M25*C15))) -> 
G36: %goal calories (upper with prosource, adjusted rate) | H36: =IF(ISERROR((H34/$H$10)*100),"",((H34/$H$10)*100)) ->  | I36: =IF(ISERROR((I34/$H$10)*100),"",((I34/$H$10)*100)) -> 
G37: %goal calories (lower with prosource, adjusted rate) | H37: =IF(ISERROR((H35/$H$10)*100),"",((H35/$H$10)*100)) ->  | I37: =IF(ISERROR((I35/$H$10)*100),"",((I35/$H$10)*100)) -> 
G38: Total protein with prosource (adjusted rate) | H38: =IF(ISERROR((H33*$H$13*$I$9)+(11*H25)),"",((H33*$H$13*$I$9)+(11*H25))) ->  | I38: =IF(ISERROR((I33*$H$13*$I$9)+(11*I25)),"",((I33*$H$13*$I$9)+(11*I25))) -> 
G39: Protein as % of goal | H39: =IF(ISERROR((H38/$H$12)*100),"",((H38/$H$12)*100)) ->  | I39: =IF(ISERROR((I38/$H$12)*100),"",((I38/$H$12)*100)) -> 
G40: Total volume (feed & propofol) UPPER | H40: =(H33*$H$13)+(H70*24) -> 
G41: Total volume (feed & propofol) LOWER | H41: =(H33*$H$13)+(H71*24) -> 
H43: Propofol off | I43: 1-5 ml/hr | J43: 6-10 ml/hr | K43: 11-15 ml/hr | L43: 16-20 ml/hr | M43: 21-25 ml/hr
G44: Feed rate (100% goal) | H44: =MAX(0,ROUND((($H$10-C19)/$H$13/$H$9),0)) ->  | I44: =MAX(0,ROUND((($H$10-C20)/$H$13/$H$9),0)) ->  | J44: =MAX(0,ROUND((($H$10-C21)/$H$13/$H$9),0)) ->  | K44: =MAX(0,ROUND((($H$10-C22)/$H$13/$H$9),0)) ->  | L44: =MAX(0,ROUND((($H$10-C23)/$H$13/$H$9),0)) ->  | M44: =MAX(0,ROUND((($H$10-C24)/$H$13/$H$9),0)) -> 
G45: Total calories (upper limit propofol) | H45: =(H44*$H$13*$H$9)+$C19 ->  | I45: =(I44*$H$13*$H$9)+$C20 ->  | J45: =(J44*$H$13*$H$9)+$C21 ->  | K45: =(K44*$H$13*$H$9)+$C22 ->  | L45: =(L44*$H$13*$H$9)+$C23 ->  | M45: =(M44*$H$13*$H$9)+$C24 -> 
G46: Total calories (lower limit propofol) | H46: =(H44*$H$13*$H$9)+$D19 ->  | I46: =(I44*$H$13*$H$9)+$D20 ->  | J46: =(J44*$H$13*$H$9)+$D21 ->  | K46: =(K44*$H$13*$H$9)+$D22 ->  | L46: =(L44*$H$13*$H$9)+$D23 ->  | M46: =(M44*$H$13*$H$9)+$D24 -> 
G47: %goal calories (upper limit propofol) | H47: =(H45/$H$10)*100 -> 
G48: %goal calories (lower limit propofol)
G49: Protein | H49: =H44*$H$13*$I$9 -> 
G50: Protein as % of goal | H50: =(H49/$H$12)*100 -> 
G51: Protein deficit | H51: =MAX(0,$H$12-H49) -> 
G52: Prosource sachets (as agreed) | H52: 0 | I52: 0 | J52: 0 | K52: 2 | L52: 2 | M52: 2
G53: Prosource TF sachet | H53: =IF(Workings!H52=0,"Nil",IF(Workings!H52=1,"OD",IF(Workings!H52=2,"BD",IF(Workings!H52=3,"TDS",IF(Workings!H52=4,"QID"))))) -> Nil | I53: =IF(Workings!I52=0,"Nil",IF(Workings!I52=1,"OD",IF(Workings!I52=2,"BD",IF(Workings!I52=3,"TDS",IF(Workings!I52=4,"QID"))))) -> Nil | J53: =IF(Workings!J52=0,"Nil",IF(Workings!J52=1,"OD",IF(Workings!J52=2,"BD",IF(Workings!J52=3,"TDS",IF(Workings!J52=4,"QID"))))) -> Nil | K53: =IF(Workings!K52=0,"Nil",IF(Workings!K52=1,"OD",IF(Workings!K52=2,"BD",IF(Workings!K52=3,"TDS",IF(Workings!K52=4,"QID"))))) -> BD | L53: =IF(Workings!L52=0,"Nil",IF(Workings!L52=1,"OD",IF(Workings!L52=2,"BD",IF(Workings!L52=3,"TDS",IF(Workings!L52=4,"QID"))))) -> BD | M53: =IF(Workings!M52=0,"Nil",IF(Workings!M52=1,"OD",IF(Workings!M52=2,"BD",IF(Workings!M52=3,"TDS",IF(Workings!M52=4,"QID"))))) -> BD
G54: Total calories with prosource (upper) | H54: =H45+(H52*$C$15) ->  | I54: =I45+(I52*$C$15) -> 
G55: Total calories with prosource (lower) | H55: =H46+(H52*$C$15) ->  | I55: =I46+(I52*$C$15) -> 
G56: %goal calories (upper limit propofol with prosource) | H56: =(H54/$H$10)*100 -> 
G57: %goal calories (lower limit propofol with prosource)
G58: Total protein with prosource | H58: =H49+(11*H52) ->  | I58: =I49+(11*I52) -> 
G59: Protein with prosource as % of goal | H59: =(H58/$H$12)*100 -> 
G60: Adjusted feed rate (avoid >110% calories) | H60: =IF((ISERROR(MAX(0,ROUNDDOWN(IF(H56<110,H44,(H44-(((H54-$H$10)/$H$9)/$H$13))),0)))),"",(MAX(0,ROUNDDOWN(IF(H56<110,H44,(H44-(((H54-$H$10)/$H$9)/$H$13))),0)))) ->  | I60: =IF((ISERROR(MAX(0,ROUNDDOWN(IF(I56<110,I44,(I44-(((I54-$H$10)/$H$9)/$H$13))),0)))),"",(MAX(0,ROUNDDOWN(IF(I56<110,I44,(I44-(((I54-$H$10)/$H$9)/$H$13))),0)))) -> 
G61: Total calories with prosource (upper, adjusted rate) | H61: =IF(ISERROR((H60*$H$13*$H$9)+$C19+(H52*$C$15)),"",((H60*$H$13*$H$9)+$C19+(H52*$C$15))) ->  | I61: =IF(ISERROR((I60*$H$13*$H$9)+$C20+(I52*$C$15)),"",((I60*$H$13*$H$9)+$C20+(I52*$C$15))) ->  | J61: =IF(ISERROR((J60*$H$13*$H$9)+$C21+(J52*$C$15)),"",((J60*$H$13*$H$9)+$C21+(J52*$C$15))) ->  | K61: =IF(ISERROR((K60*$H$13*$H$9)+$C22+(K52*$C$15)),"",((K60*$H$13*$H$9)+$C22+(K52*$C$15))) ->  | L61: =IF(ISERROR((L60*$H$13*$H$9)+$C23+(L52*$C$15)),"",((L60*$H$13*$H$9)+$C23+(L52*$C$15))) ->  | M61: =IF(ISERROR((M60*$H$13*$H$9)+$C24+(M52*$C$15)),"",((M60*$H$13*$H$9)+$C24+(M52*$C$15))) -> 
G62: Total calories with prosource (lower, adjusted rate) | H62: =IF(ISERROR((H60*$H$13*$H$9)+$D19+(H52*$C$15)),"",((H60*$H$13*$H$9)+$D19+(H52*$C$15))) ->  | I62: =IF(ISERROR((I60*$H$13*$H$9)+$D20+(I52*$C$15)),"",((I60*$H$13*$H$9)+$D20+(I52*$C$15))) ->  | J62: =IF(ISERROR((J60*$H$13*$H$9)+$D21+(J52*$C$15)),"",((J60*$H$13*$H$9)+$D21+(J52*$C$15))) ->  | K62: =IF(ISERROR((K60*$H$13*$H$9)+$D22+(K52*$C$15)),"",((K60*$H$13*$H$9)+$D22+(K52*$C$15))) ->  | L62: =IF(ISERROR((L60*$H$13*$H$9)+$D23+(L52*$C$15)),"",((L60*$H$13*$H$9)+$D23+(L52*$C$15))) ->  | M62: =IF(ISERROR((M60*$H$13*$H$9)+$D24+(M52*$C$15)),"",((M60*$H$13*$H$9)+$D24+(M52*$C$15))) -> 
G63: %goal calories (upper with prosource, adjusted rate) | H63: =IF(ISERROR((H61/$H$10)*100),"",((H61/$H$10)*100)) ->  | I63: =IF(ISERROR((I61/$H$10)*100),"",((I61/$H$10)*100)) ->  | J63: =IF(ISERROR((J61/$H$10)*100),"",((J61/$H$10)*100)) -> 
G64: %goal calories (lower with prosource, adjusted rate) | H64: =IF(ISERROR((H62/$H$10)*100),"",((H62/$H$10)*100)) ->  | I64: =IF(ISERROR((I62/$H$10)*100),"",((I62/$H$10)*100)) -> 
G65: Total protein with prosource (adjusted rate) | H65: =IF(ISERROR((H60*$H$13*$I$9)+(11*H52)),"",((H60*$H$13*$I$9)+(11*H52))) ->  | I65: =IF(ISERROR((I60*$H$13*$I$9)+(11*I52)),"",((I60*$H$13*$I$9)+(11*I52))) -> 
G66: Protein as % of goal | H66: =IF(ISERROR((H65/$H$12)*100),"",((H65/$H$12)*100)) ->  | I66: =IF(ISERROR((I65/$H$12)*100),"",((I65/$H$12)*100)) -> 
G67: Total volume (feed & propofol) UPPER | H67: =(H60*$H$13)+(H70*24) -> 
G68: Total volume (feed & propofol) LOWER | H68: =(H60*$H$13)+(H71*24) -> 
G70: Upper propofol rate | H70: 0 | I70: 5 | J70: 10 | K70: 15 | L70: 20 | M70: 25
G71: Lower propofol rate | H71: 0 | I71: 1 | J71: 6 | K71: 11 | L71: 16 | M71: 21
A75: =IF(B6="Yes","",IF(ISERROR(Workings!H10)," ",Workings!H10)) -> 

Sheet Nutritional Data
A1: Hypocaloric feeding (<70% of goal calories) | B1: =Workings!H16 -> Propofol off | C1: =Workings!I16 -> 1-5 ml/hr | D1: =Workings!J16 -> 6-10 ml/hr | E1: =Workings!K16 -> 11-15 ml/hr | F1: =Workings!L16 -> 16-20 ml/hr | G1: =Workings!M16 -> 21-25 ml/hr
A2: Feed rate | B2: =Workings!H33 ->  | C2: =Workings!I33 ->  | D2: =Workings!J33 ->  | E2: =Workings!K33 ->  | F2: =Workings!L33 ->  | G2: =Workings!M33 -> 
A3: =Workings!G26 -> Prosource TF sachet | B3: =Workings!H26 -> Nil | C3: =Workings!I26 -> Nil | D3: =Workings!J26 -> Nil | E3: =Workings!K26 -> BD | F3: =Workings!L26 -> BD | G3: =Workings!M26 -> BD
A4: Total calories (higher rate propofol) | B4: =Workings!H34 ->  | C4: =Workings!I34 ->  | D4: =Workings!J34 ->  | E4: =Workings!K34 ->  | F4: =Workings!L34 ->  | G4: =Workings!M34 -> 
A5: Total calories (lower rate propofol) | B5: =Workings!H35 ->  | C5: =Workings!I35 ->  | D5: =Workings!J35 ->  | E5: =Workings!K35 ->  | F5: =Workings!L35 ->  | G5: =Workings!M35 -> 
A6: %goal calories (higher rate propofol) | B6: =Workings!H36 ->  | C6: =Workings!I36 ->  | D6: =Workings!J36 ->  | E6: =Workings!K36 ->  | F6: =Workings!L36 ->  | G6: =Workings!M36 -> 
A7: %goal calories (lower rate propofol) | B7: =Workings!H37 ->  | C7: =Workings!I37 ->  | D7: =Workings!J37 ->  | E7: =Workings!K37 ->  | F7: =Workings!L37 ->  | G7: =Workings!M37 -> 
A8: Total protein | B8: =Workings!H38 ->  | C8: =Workings!I38 ->  | D8: =Workings!J38 ->  | E8: =Workings!K38 ->  | F8: =Workings!L38 ->  | G8: =Workings!M38 -> 
A9: %goal protein | B9: =Workings!H39 ->  | C9: =Workings!I39 ->  | D9: =Workings!J39 ->  | E9: =Workings!K39 ->  | F9: =Workings!L39 ->  | G9: =Workings!M39 -> 
A11: Full feed (85-110% of goal calories) | B11: =Workings!H43 -> Propofol off | C11: =Workings!I43 -> 1-5 ml/hr | D11: =Workings!J43 -> 6-10 ml/hr | E11: =Workings!K43 -> 11-15 ml/hr | F11: =Workings!L43 -> 16-20 ml/hr | G11: =Workings!M43 -> 21-25 ml/hr
A12: Feed rate | B12: =Workings!H60 ->  | C12: =Workings!I60 ->  | D12: =Workings!J60 ->  | E12: =Workings!K60 ->  | F12: =Workings!L60 ->  | G12: =Workings!M60 -> 
A13: =Workings!G53 -> Prosource TF sachet | B13: =Workings!H53 -> Nil | C13: =Workings!I53 -> Nil | D13: =Workings!J53 -> Nil | E13: =Workings!K53 -> BD | F13: =Workings!L53 -> BD | G13: =Workings!M53 -> BD
A14: Total calories (higher rate propofol) | B14: =Workings!H61 ->  | C14: =Workings!I61 ->  | D14: =Workings!J61 ->  | E14: =Workings!K61 ->  | F14: =Workings!L61 ->  | G14: =Workings!M61 -> 
A15: Total calories (lower rate propofol) | B15: =Workings!H62 ->  | C15: =Workings!I62 ->  | D15: =Workings!J62 ->  | E15: =Workings!K62 ->  | F15: =Workings!L62 ->  | G15: =Workings!M62 -> 
A16: %goal calories (higher rate propofol) | B16: =Workings!H63 ->  | C16: =Workings!I63 ->  | D16: =Workings!J63 ->  | E16: =Workings!K63 ->  | F16: =Workings!L63 ->  | G16: =Workings!M63 -> 
A17: %goal calories (lower rate propofol) | B17: =Workings!H64 ->  | C17: =Workings!I64 ->  | D17: =Workings!J64 ->  | E17: =Workings!K64 ->  | F17: =Workings!L64 ->  | G17: =Workings!M64 -> 
A18: Total protein | B18: =Workings!H65 ->  | C18: =Workings!I65 ->  | D18: =Workings!J65 ->  | E18: =Workings!K65 ->  | F18: =Workings!L65 ->  | G18: =Workings!M65 -> 
A19: %goal protein | B19: =Workings!H66 ->  | C19: =Workings!I66 ->  | D19: =Workings!J66 ->  | E19: =Workings!K66 ->  | F19: =Workings!L66 ->  | G19: =Workings!M66 -> 

Sheet To copy to Clinical Note (hidden)
A1: Enteral feed prescription
A2: Date: | B2: =TODAY() -> 2019-11-05
A4: Patient: | B4: ='Enteral Feed Prescription'!B1 -> 0
A5: Hospital Number: | B5: ='Enteral Feed Prescription'!B2 -> 0
A6: Gender: | B6: ='Enteral Feed Prescription'!B3 -> 0
A7: Dietitian review? | B7: ='Enteral Feed Prescription'!B6 -> 0
A8: ='Enteral Feed Prescription'!A7 ->  | B8: ='Enteral Feed Prescription'!B7 -> 00:00:00
A9: ='Enteral Feed Prescription'!A11 -> 0 | B9: ='Enteral Feed Prescription'!B11 -> 0 | C9: ='Enteral Feed Prescription'!C11 -> 0
A10: ='Enteral Feed Prescription'!A10 -> 0 | B10: ='Enteral Feed Prescription'!B10 -> 0 | C10: ='Enteral Feed Prescription'!C10 -> 0
A11: ='Enteral Feed Prescription'!A12 -> 0 | B11: ='Enteral Feed Prescription'!B12 ->  | C11: ='Enteral Feed Prescription'!C12 -> 
A12: Caloric requirements: | B12: =IF(ISBLANK('Enteral Feed Prescription'!F10),'Enteral Feed Prescription'!G10,'Enteral Feed Prescription'!F10) -> 
A13: Protein requirements: | B13: =IF(ISBLANK('Enteral Feed Prescription'!F11),'Enteral Feed Prescription'!G11,'Enteral Feed Prescription'!F11) -> 
A15: Feed type | B15: =IF('Enteral Feed Prescription'!B14="Osmolite HP (first line)","Osmolite HP",IF(('Enteral Feed Prescription'!B14)="Nepro (Renal failure & hyperkalaemia/fluid-restriction)","Nepro",IF(('Enteral Feed Prescription'!B14)="Osmolite Plus (halal/soya protein free option)","Osmolite Plus",'Enteral Feed Prescription'!B14))) -> 0
A17: ='Enteral Feed Prescription'!A18 ->  | B17: ='Enteral Feed Prescription'!B18 -> 
B18: ='Enteral Feed Prescription'!B19 -> 
B19: ='Enteral Feed Prescription'!B20 -> 
A20: ='Enteral Feed Prescription'!A23 -> Full feed
A21: ='Enteral Feed Prescription'!A24 -> Propofol rate (ml/hr) | B21: ='Enteral Feed Prescription'!B24 -> Off | C21: ='Enteral Feed Prescription'!C24 -> 1-5 | D21: ='Enteral Feed Prescription'!D24 -> 6-10 | E21: ='Enteral Feed Prescription'!E24 -> 11-15 | F21: ='Enteral Feed Prescription'!F24 -> 16-20 | G21: ='Enteral Feed Prescription'!G24 -> 21-25
A22: ='Enteral Feed Prescription'!A25 -> Feed rate (ml/hr) | B22: ='Enteral Feed Prescription'!B25 ->  | C22: ='Enteral Feed Prescription'!C25 ->  | D22: ='Enteral Feed Prescription'!D25 ->  | E22: ='Enteral Feed Prescription'!E25 ->  | F22: ='Enteral Feed Prescription'!F25 ->  | G22: ='Enteral Feed Prescription'!G25 -> 
A23: ='Enteral Feed Prescription'!A26 -> Prosource TF sachet | B23: ='Enteral Feed Prescription'!B26 -> Give 1 sachet in morning & evening if on >10 ml/hr propofol (otherwise no Prosource)
A25: ='Enteral Feed Prescription'!A31 -> 
A26: ='Enteral Feed Prescription'!A32 ->  | B26: ='Enteral Feed Prescription'!B32 ->  | C26: ='Enteral Feed Prescription'!C32 ->  | D26: ='Enteral Feed Prescription'!D32 ->  | E26: ='Enteral Feed Prescription'!E32 ->  | F26: ='Enteral Feed Prescription'!F32 ->  | G26: ='Enteral Feed Prescription'!G32 -> 
A27: ='Enteral Feed Prescription'!A33 ->  | B27: ='Enteral Feed Prescription'!B33 ->  | C27: ='Enteral Feed Prescription'!C33 ->  | D27: ='Enteral Feed Prescription'!D33 ->  | E27: ='Enteral Feed Prescription'!E33 ->  | F27: ='Enteral Feed Prescription'!F33 ->  | G27: ='Enteral Feed Prescription'!G33 -> 
A28: ='Enteral Feed Prescription'!A34 ->  | B28: ='Enteral Feed Prescription'!B34 -> 
A30: ACTIONS REQUIRED
A31: ="1. Prescribe 'Free Text Dietetic Product': " & B15 & " at rate " & MAX(B22:G22,B27:G27) & " ml/hr. In 'Additional Info' enter 'VARIABLE RATE ACCORDING AS PER FEEDING PRESCRIPTION" -> 1. Prescribe 'Free Text Dietetic Product': 0 at rate 0 ml/hr. In 'Additional Info' enter 'VARIABLE RATE ACCORDING AS PER FEEDING PRESCRIPTION
A32: 2. Prescribe 'Free Text Dietetic Product': Prosource TF 11g BD PRN
A33: 3. Ensure feed prescription is printed and given to bedside nurse
A34: =IF(OR(B8="Yes",AND(B7="No",B8=0)),"4. Ensure dietitian referral is made",(IF(C9="Estimated","4. Obtain accurate height when able",(IF(C10="Estimated","4. Obtain accurate dry weight when able",""))))) -> 
A35: =IF(A34="4. Ensure dietitian referral is made",IF(C9="Estimated","5. Obtain accurate height when able",IF(C10="Estimated","5. Obtain accurate dry weight when able","")),IF(A34="4. Obtain accurate height when able",IF(C10="Estimated","5. Obtain accurate dry weight when able",""),"")) -> 
A36: =IF(A35="5. Obtain accurate height when able", (IF(C10="Estimated","6. Obtain accurate dry weight when able","")),"") -> 
